[Event "FTX Crypto Cup MCCT 2022"]
[Site "Miami"]
[Date "2022.08.11"]
[Round "6.3"]
[White "Giri, Anish"]
[Black "Le, Quang Liem"]
[Result "1/2-1/2"]
[ECO "A07"]
[WhiteElo "2760"]
[BlackElo "2722"]
[Annotator "TA"]
[PlyCount "127"]
[EventDate "2022.08.10"]
[EventType "tourn"]
[EventCountry "USA"]
[SourceTitle "playchess.com"]
[Source "ChessBase"]
[SourceQuality "1"]
[TimeControl "900+10"]

{[%evp 9,127,9,14,13,20,-22,-19,-17,-25,-16,-17,-3,-41,-35,-29,-25,-14,-12,-28,-6,-1,-33,-27,-52,-58,-46,-55,-47,0,0,0,0,0,0,0,0,0,0,8,0,0,0,0,0,0,0,0,0,0,-4,0,0,0,0,0,0,0,0,0,-2,0,0,0,0,17,17,21,0,0,0,0,0,59,59,110,100,217,78,78,0,171,50,151,0,0,0,0,0,0,0,0,0,0,0,0,0,0,0,0,0,0,-3,-15,-164,-102,-154,-152,-188,0,0,0,0,0,0,0,0,0,0,0,-6]} 1. Nf3 {[%emt 0:00:00]} d5 {[%emt 0:00:00]} 2. g3 {[%emt 0:00:02]} c6 {[%emt 0:00:08]} 3. Bg2 {[%emt 0:00:02]} Bg4 {[%emt 0:00:02]} 4. h3 {[%emt 0:00:01]} Bh5 {[%emt 0:00:05]} 5. d4 {[%emt 0:00:29]} Nd7 {[%emt 0:00:11]} 6. c4 {[%emt 0:00:02] A07: Réti Opening: New York and Capablanca Systems.} e6 {[%emt 0:00:19]} 7. Nc3 {[%emt 0:00:03]} dxc4 {[%emt 0:00:24]} 8. O-O {[%emt 0:00:26]} Ngf6 {[%emt 0:00:12] [#]} 9. b3 $146 {[%emt 0:01:17]} ({Predecessor:} 9. e4 Bb4 10. Qe2 Qe7 11. e5 Nd5 12. Qxc4 N7b6 13. Qb3 Qd7 14. Ng5 Be7 15. Nge4 {1-0 (38) Sjugirov,S (2657)-Subelj,J (2398) Budva 2019}) 9... cxb3 {[%emt 0:02:06]} 10. Qxb3 {[%emt 0:00:04]} Qb6 {[%emt 0:00:05]} 11. Qa4 {[%emt 0:03:58]} Bg6 {[%emt 0:02:19]} 12. Nh4 {[%emt 0:01:37]} Qb4 {[%emt 0:00:17]} (12... Bb4 {looks sharper.} 13. Nd1 Qxd4 14. Nxg6 hxg6 15. Rb1 a5) 13. Nxg6 {[%emt 0:00:13]} Qxa4 {[%emt 0:00:01]} 14. Nxa4 {[%emt 0:00:00]} hxg6 {[%emt 0:00:01]} 15. Rb1 {[%emt 0:00:08] Inhibits Nb6.} O-O-O {[%emt 0:00:04]} 16. e4 {[%emt 0:00:08]} Nb6 {[%emt 0:01:04]} 17. Nxb6+ {[%emt 0:00:11]} axb6 {[%emt 0:00:02]} 18. Be3 {[%emt 0:00:19]} b5 {[%emt 0:00:26]} (18... Nd7 $15) 19. Rfc1 $11 {[%emt 0:00:02]} b4 {[%emt 0:00:40]} 20. g4 {[%emt 0:00:21]} Be7 {[%emt 0:00:54][%cal Og6g5]} 21. g5 {[%emt 0:00:40]} Nd7 {[%emt 0:01:58]} 22. d5 {[%emt 0:00:15]} Nb8 {[%emt 0:00:34]} 23. f4 {[%emt 0:00:54]} Kc7 {[%emt 0:02:18]} 24. Bd4 {[%emt 0:02:27]} f6 {[%emt 0:00:02]} 25. a3 {[%emt 0:00:42]} bxa3 {[%emt 0:02:18]} 26. Bb6+ {[%emt 0:00:04]} Kc8 {[%emt 0:00:02]} 27. Bxd8 {[%emt 0:00:08]} Rxd8 {[%emt 0:00:01]} 28. gxf6 {[%emt 0:00:56]} gxf6 {[%emt 0:00:00]} 29. f5 {[%emt 0:01:11]} e5 {[%emt 0:00:31]} (29... exd5 30. exd5 (30. fxg6 Rg8 $11) 30... gxf5 31. dxc6 bxc6 32. Bxc6 Nxc6 33. Rxc6+ Kd7 34. Ra6 $14) 30. fxg6 {[%emt 0:00:30]} Rg8 $1 {[%emt 0:00:01]} 31. Bf3 {[%emt 0:00:13] Hoping for Bg4+.} Rxg6+ {[%emt 0:00:03]} 32. Bg4+ {[%emt 0:00:01]} Kc7 {[%emt 0:00:02]} 33. Kf2 {[%emt 0:00:11]} Na6 {[%emt 0:01:50]} ({Much less strong is} 33... a2 34. Ra1 $16) 34. Kf3 {[%emt 0:00:36]} Rg8 {[%emt 0:00:34]} 35. dxc6 {[%emt 0:00:30]} bxc6 {[%emt 0:00:00]} 36. Be6 {[%emt 0:00:55]} Rh8 {[%emt 0:00:03]} 37. Rg1 {[%emt 0:00:23][%mdl 1024] White has compensation.} Nc5 {[%emt 0:00:14]} 38. Bf5 {[%emt 0:00:21]} Ra8 {[%emt 0:00:16]} (38... a2 $2 39. Rb2 $18) 39. Rg2 {[%emt 0:00:48]} Bf8 {[%emt 0:00:14]} (39... a2 40. Ra1 $16) 40. h4 {[%emt 0:00:09][%cal Bh3h4,Bh4h5][%mdl 32]} Bh6 {[%emt 0:00:11]} (40... a2 $2 41. Ra1 $18) ({Black should try} 40... Nb3 $11 41. Rxb3 a2 42. Rxa2 Rxa2) 41. Ra2 $1 $14 {[%emt 0:00:16]} Bf8 {[%emt 0:00:23]} (41... Nb7 $14) 42. h5 $16 {[%emt 0:00:11]} Na4 {[%emt 0:00:31]} (42... Nd3 $16) 43. Rd2 {[%emt 0:00:03]} ({Don't do} 43. h6 $6 Bxh6 44. Rxa3 Nb6 45. Rxa8 Nxa8 $16) (43. Rb3 $1 $18 {[%cal Oh5h6] Threatens to win with h6!} Rb8 44. Rxb8 Kxb8 45. Be6) 43... Nc5 {[%emt 0:00:11]} 44. Ra2 {[%emt 0:00:11] White is more active.} (44. Kg4 $1 $16) 44... Na4 $1 $18 {[%emt 0:00:06] [#]} 45. Rc2 {[%emt 0:00:02] Prevents Nc3.} ({Resist} 45. h6 Bxh6 46. Rxa3 Nb6 47. Rxa8 Nxa8 $16) (45. Rb3 $1 $18 {[%cal Oh5h6] And now h6! would win.} Rb8 46. Rxb8 Kxb8 47. Be6) 45... Rd8 {[%emt 0:00:18] [#]} ({Black should play} 45... Nc5 $14) 46. Be6 $2 {[%emt 0:00:27]} (46. Kg4 $1 $16) 46... Nc5 $11 {[%emt 0:00:15]} 47. Bc4 {[%emt 0:00:00]} Rd4 {[%emt 0:00:08]} 48. Re1 {[%emt 0:00:06]} Bh6 {[%emt 0:00:05]} 49. Ree2 {[%emt 0:00:07]} Kd6 {[%emt 0:00:09]} 50. Ba2 {[%emt 0:00:14]} f5 {[%emt 0:00:23]} 51. exf5 {[%emt 0:00:09]} Rf4+ {[%emt 0:00:00]} 52. Kg3 {[%emt 0:00:34]} Rxf5 {[%emt 0:00:01]} 53. Kg4 {[%emt 0:00:04]} Rf4+ {[%emt 0:00:05]} 54. Kg3 {[%emt 0:00:01]} Rf5 {[%emt 0:00:01]} 55. Re1 {[%emt 0:00:03] Rd1+ is the strong threat.} e4 {[%emt 0:00:14]} 56. Rh1 {[%emt 0:00:05]} (56. Rc3 $11 {and White is okay.}) 56... Rf3+ {[%emt 0:00:12]} (56... Nd3 $19 57. Rd1 Kc7) 57. Kg2 {[%emt 0:00:06]} (57. Kh4 $142) 57... Nd3 $17 {[%emt 0:00:05]} 58. Rd1 {[%emt 0:00:02]} Kc7 $2 {[%emt 0:00:10]} (58... Ke5 $19 {aiming for ...Re3.} 59. Rf1 Re3) 59. Bd5 $1 $11 {[%emt 0:00:10] The position is equal.} Nf4+ {[%emt 0:00:01]} 60. Kg1 {[%emt 0:00:05]} Rg3+ {[%emt 0:00:13]} 61. Kf1 {[%emt 0:00:02]} Rf3+ {[%emt 0:00:01]} 62. Kg1 $1 {[%emt 0:00:06]} Rg3+ {[%emt 0:00:03]} 63. Kf1 {[%emt 0:00:01]} Rf3+ {[%emt 0:00:01]} 64. Kg1 $1 {[%emt 0:00:04] What a bad dream for Black.  Weighted Error Value: White=0.16 (very precise) /Black=0.13 (very precise)} 1/2-1/2

[Event "FTX Crypto Cup MCCT 2022"]
[Site "Miami"]
[Date "2022.08.11"]
[Round "6.3"]
[White "Niemann, Hans Moke"]
[Black "Aronian, Levon"]
[Result "1/2-1/2"]
[ECO "A21"]
[WhiteElo "2688"]
[BlackElo "2775"]
[Annotator "TA"]
[PlyCount "69"]
[EventDate "2022.08.10"]
[EventType "tourn"]
[EventCountry "USA"]
[SourceTitle "playchess.com"]
[Source "ChessBase"]
[SourceQuality "1"]
[TimeControl "900+10"]

{[%evp 9,69,11,21,16,25,19,28,19,31,31,25,17,17,21,20,19,29,24,29,-23,-16,-13,-16,-24,-25,-23,-16,-27,-5,-8,0,0,0,0,0,0,0,0,0,0,0,0,0,-5,0,0,0,-5,4,4,4,4,22,22,22,22,22,0,22,0,22,0]} 1. c4 {[%emt 0:00:00]} e5 {[%emt 0:00:00]} 2. Nc3 {[%emt 0:00:03]} Bb4 {[%emt 0:00:02]} 3. Nd5 {[%emt 0:00:06]} Be7 {[%emt 0:00:02]} 4. d4 {[%emt 0:00:15]} exd4 {[%emt 0:00:03]} 5. Qxd4 {[%emt 0:00:07]} Nf6 {[%emt 0:00:02]} 6. Nxe7 {[%emt 0:00:06] A21: English Opening: 1...e5 2 Nc3.} Qxe7 {[%emt 0:00:01]} 7. Bg5 {[%emt 0:00:03]} Nc6 {[%emt 0:00:02]} 8. Qc3 {[%emt 0:00:06] White has an edge.} Ne5 {[%emt 0:00:01]} 9. Nf3 {[%emt 0:00:30]} d6 {[%emt 0:00:02]} 10. Nxe5 {[%emt 0:00:42]} dxe5 {[%emt 0:00:07]} 11. f3 {[%emt 0:00:34]} Bd7 {[%emt 0:00:44] [#]} 12. e3 $146 {[%emt 0:01:43]} ({Predecessor:} 12. Bh4 O-O 13. e4 Rfe8 14. O-O-O c5 15. Bd3 b6 16. Rd2 Bc6 17. Rhd1 Rad8 18. Bc2 Rd4 19. Bf2 Rd7 20. Bh4 {½-½ (22) Sakhabeev,R (2336)-Troger,D (2325) ICCF email 2017}) 12... Bc6 {[%emt 0:01:07]} 13. Bh4 {[%emt 0:00:30]} a5 {[%emt 0:00:24]} 14. Be2 {[%emt 0:00:50] [#]} ({Better is} 14. Bd3) 14... Ne4 $1 $11 {[%emt 0:00:18]} 15. Bxe7 {[%emt 0:00:16]} Nxc3 {[%emt 0:00:02]} 16. Ba3 {[%emt 0:00:30]} Nxe2 {[%emt 0:00:02]} 17. Kxe2 {[%emt 0:00:00]} f6 {[%emt 0:00:25]} 18. Rad1 {[%emt 0:00:06]} Kf7 {[%emt 0:00:04]} 19. e4 {[%emt 0:00:03] The position is equal.} Rhd8 {[%emt 0:00:06]} 20. Rxd8 {[%emt 0:00:02]} Rxd8 {[%emt 0:00:02]} 21. Rd1 {[%emt 0:00:01]} Rxd1 {[%emt 0:00:04]} 22. Kxd1 {[%emt 0:00:00][%mdl 4096] Endgame KB-KB} Bd7 {[%emt 0:00:03]} 23. Ke2 {[%emt 0:00:04]} b6 {[%emt 0:00:04]} 24. b3 {[%emt 0:00:05]} c5 {[%emt 0:00:02]} 25. Bc1 {[%emt 0:00:02]} g5 {[%emt 0:00:01]} 26. g4 {[%emt 0:00:04]} Ke6 {[%emt 0:00:03]} 27. a4 {[%emt 0:00:01]} Be8 {[%emt 0:00:05]} 28. Kf2 {[%emt 0:00:05]} Bd7 {[%emt 0:00:02]} 29. Kg3 {[%emt 0:00:03]} Be8 {[%emt 0:00:01]} 30. h4 {[%emt 0:00:00]} h6 {[%emt 0:00:01]} 31. h5 {[%emt 0:00:01]} Bd7 {[%emt 0:00:02]} 32. Bd2 {[%emt 0:00:01]} Be8 {[%emt 0:00:02]} 33. Bc1 {[%emt 0:00:01]} Bd7 {[%emt 0:00:00]} 34. Bd2 {[%emt 0:00:01]} Be8 {[%emt 0:00:01]} 35. Bc1 {[%emt 0:00:00] An even fight not without its subleties.  Weighted Error Value: White=0.06 (flawless) /Black=0.04 (flawless)} 1/2-1/2

[Event "FTX Crypto Cup MCCT 2022"]
[Site "Miami"]
[Date "2022.08.11"]
[Round "6.3"]
[White "Praggnanandhaa R"]
[Black "Duda, Jan-Krzysztof"]
[Result "1/2-1/2"]
[ECO "A07"]
[WhiteElo "2648"]
[BlackElo "2750"]
[Annotator "TA"]
[PlyCount "104"]
[EventDate "2022.08.10"]
[EventType "tourn"]
[EventCountry "USA"]
[SourceTitle "playchess.com"]
[Source "ChessBase"]
[SourceQuality "1"]
[TimeControl "900+10"]

{[%evp 11,104,-9,-2,-5,27,27,22,20,30,12,31,39,31,35,19,22,39,25,20,16,11,8,15,13,39,26,36,29,64,61,60,53,60,31,29,21,51,41,43,45,58,7,0,4,41,46,54,52,52,54,66,66,70,62,64,51,56,58,52,50,65,66,75,37,42,25,30,23,23,23,23,22,30,2,2,0,0,0,0,0,0,0,0,0,2,2,2,2,2,2,2,2,2,2,2]} 1. Nf3 {[%emt 0:00:00]} d5 {[%emt 0:00:00]} 2. g3 {[%emt 0:00:02]} g6 {[%emt 0:00:03]} 3. Bg2 {[%emt 0:00:03]} Bg7 {[%emt 0:00:01]} 4. O-O {[%emt 0:00:02]} e5 {[%emt 0:00:09]} 5. d3 {[%emt 0:00:02]} Ne7 {[%emt 0:00:03]} 6. c4 {[%emt 0:00:10]} c6 {[%emt 0:00:30]} 7. e4 $1 {[%emt 0:00:05][%mdl 4] is more profitable than 7.Nc3 at the moment. A07: Réti Opening: New York and Capablanca Systems.} dxe4 {[%emt 0:00:33]} 8. dxe4 {[%emt 0:00:03]} Qxd1 {[%emt 0:00:00]} 9. Rxd1 {[%emt 0:00:01]} Be6 {[%emt 0:00:25]} 10. b3 {[%emt 0:01:26]} f6 {[%emt 0:00:03]} 11. Nc3 {[%emt 0:00:55]} Na6 {[%emt 0:00:06]} 12. Be3 {[%emt 0:00:45] [#]} Kf7 $146 {[%emt 0:00:06]} ({Predecessor:} 12... h5 13. Ne1 h4 14. Nd3 hxg3 15. hxg3 Kf7 16. f4 exf4 17. gxf4 Rhd8 18. Kf2 Rd7 {½-½ (53) Ding,L (2799)-Aronian,L (2782) chess24.com INT 2021}) 13. Ne1 {[%emt 0:00:29]} g5 {[%emt 0:02:53]} 14. a4 {[%emt 0:01:24]} Ng6 {[%emt 0:00:14]} 15. a5 {[%emt 0:00:50][%cal Ob3b4]} Bf8 {[%emt 0:02:14]} 16. Nd3 {[%emt 0:01:06]} Be7 {[%emt 0:00:02]} 17. Na4 {[%emt 0:00:32]} Nc7 {[%emt 0:01:34]} 18. Rd2 {[%emt 0:01:28]} Rhd8 {[%emt 0:00:32]} 19. Rad1 {[%emt 0:00:17]} Na6 {[%emt 0:01:23]} 20. Bf3 {[%emt 0:01:11]} g4 {[%emt 0:00:16]} 21. Be2 {[%emt 0:00:08]} f5 {[%emt 0:00:55]} 22. exf5 {[%emt 0:01:16]} (22. f3 $5 {[%cal Re4f5]}) 22... Bxf5 {[%emt 0:00:00]} 23. Ndc5 {[%emt 0:00:10]} Rxd2 {[%emt 0:00:05]} 24. Rxd2 {[%emt 0:00:02]} Nxc5 {[%emt 0:00:01]} 25. Nxc5 {[%emt 0:00:41]} b6 {[%emt 0:01:23]} 26. axb6 {[%emt 0:00:47]} (26. Nb7 $14) 26... axb6 $11 {[%emt 0:00:00]} 27. Na4 {[%emt 0:00:00]} b5 {[%emt 0:00:05]} 28. cxb5 {[%emt 0:00:13]} cxb5 {[%emt 0:00:00]} 29. Bxb5 {[%emt 0:00:08]} Be6 {[%emt 0:00:28]} 30. Rb2 {[%emt 0:01:50]} e4 {[%emt 0:00:12]} 31. Bc6 {[%emt 0:00:20][%csl LRa8,LRe4]} Rb8 {[%emt 0:00:16]} 32. Nb6 {[%emt 0:00:18]} Bd8 $1 {[%emt 0:00:05]} 33. Nd7 {[%emt 0:00:44] White is more active.} Rxb3 {[%emt 0:01:03]} 34. Rxb3 {[%emt 0:00:15]} Bxb3 {[%emt 0:00:00]} 35. Bxe4 {[%emt 0:00:16]} Be6 {[%emt 0:00:24]} 36. Nc5 {[%emt 0:00:06]} Bc4 {[%emt 0:00:00]} 37. Bf5 {[%emt 0:00:14]} h5 {[%emt 0:00:11]} 38. Ne4 {[%emt 0:00:09] [#] Hoping for Nd6+.} Ne5 {[%emt 0:00:29]} 39. Nd6+ {[%emt 0:00:17]} Kf6 {[%emt 0:00:06]} 40. Be4 {[%emt 0:00:43]} Be2 {[%emt 0:00:03]} 41. Bd4 {[%emt 0:00:04] aiming for Bd5.} Ke6 {[%emt 0:00:34] Inhibits Bd5+.} 42. Nf5 {[%emt 0:00:57]} (42. Nb7 $5 {[%cal Rb7d8]} Bf6 43. Nc5+ Kd6 44. Nb3 $14) 42... Nf3+ {[%emt 0:01:18] The position is equal.} 43. Bxf3 {[%emt 0:00:04]} Bxf3 {[%emt 0:00:00][%mdl 4096] Endgame KBB-KBN} 44. Ng7+ {[%emt 0:00:16]} Kd5 {[%emt 0:00:01]} 45. Be3 {[%emt 0:00:24]} h4 {[%emt 0:00:02]} 46. Nh5 {[%emt 0:00:08]} h3 {[%emt 0:00:07]} 47. Nf4+ {[%emt 0:00:01]} Ke4 {[%emt 0:00:01]} 48. Ne6 {[%emt 0:00:02]} Ba5 {[%emt 0:00:19]} 49. Ng5+ {[%emt 0:00:17]} Kf5 {[%emt 0:00:01]} 50. Nxf3 {[%emt 0:00:20]} gxf3 {[%emt 0:00:00]} 51. Kf1 {[%emt 0:00:01]} Kg4 {[%emt 0:00:02]} 52. Bc5 {[%emt 0:00:13]} Bc3 {[%emt 0:00:02] Weighted Error Value: White=0.07 (flawless) /Black=0.06 (flawless)} 1/2-1/2

[Event "FTX Crypto Cup MCCT 2022"]
[Site "Miami"]
[Date "2022.08.11"]
[Round "6.4"]
[White "Carlsen, Magnus"]
[Black "Firouzja, Alireza"]
[Result "1/2-1/2"]
[ECO "E04"]
[WhiteElo "2864"]
[BlackElo "2793"]
[Annotator "TA"]
[PlyCount "104"]
[EventDate "2022.08.10"]
[EventType "tourn"]
[EventCountry "USA"]
[SourceTitle "playchess.com"]
[Source "ChessBase"]
[SourceQuality "1"]
[TimeControl "900+10"]

{[%evp 11,104,20,35,27,11,18,48,46,50,22,43,28,28,15,18,12,29,5,22,27,24,31,27,0,0,0,0,6,4,0,13,8,17,18,25,10,20,0,24,27,30,30,37,36,37,24,20,23,58,36,50,48,58,4,4,0,0,0,0,0,0,0,0,0,0,0,0,0,0,0,0,0,0,0,0,0,0,0,0,0,0,0,0,0,0,0,0,0,0,0,0,0,0,0,0]} 1. d4 {[%emt 0:00:00]} Nf6 {[%emt 0:00:00]} 2. c4 {[%emt 0:00:08]} e6 {[%emt 0:00:01]} 3. Nf3 {[%emt 0:00:08]} d5 {[%emt 0:00:02]} 4. g3 {[%emt 0:00:01]} dxc4 {[%emt 0:00:05]} 5. Bg2 {[%emt 0:00:03]} a6 {[%emt 0:00:00]} 6. O-O {[%emt 0:00:21]} Nc6 {[%emt 0:00:02]} 7. Bg5 {[%emt 0:02:11] E04: Open Catalan: 5 Nf3.} (7. e3 $5 {[%cal Rb1d2]}) 7... Be7 {[%emt 0:00:14]} 8. e3 {[%emt 0:00:02]} Nd5 {[%emt 0:00:21]} 9. Bxe7 {[%emt 0:00:07] White is slightly better.} Ncxe7 {[%emt 0:00:14]} 10. Ne5 {[%emt 0:01:09]} b5 $1 {[%emt 0:00:08]} 11. b3 {[%emt 0:00:02]} cxb3 {[%emt 0:00:12]} 12. axb3 {[%emt 0:00:00]} O-O {[%emt 0:03:02]} 13. Nd3 {[%emt 0:00:22][%mdl 1024] [#] White has compensation.} Bb7 $146 {[%emt 0:00:59]} ({Predecessor:} 13... a5 14. Qd2 c6 15. Rc1 Qb6 16. Nc3 Ra7 17. Ne4 Rd8 18. Rc2 Bd7 19. Nec5 Be8 {0-1 (46) Jumabayev,R (2545)-Aleksandrov,A (2607) Pavlodar 2012}) 14. Qd2 {[%emt 0:00:15]} Qc8 {[%emt 0:00:53]} 15. Nc5 {[%emt 0:00:17]} Bc6 {[%emt 0:00:04]} 16. Rc1 {[%emt 0:00:06]} Rd8 {[%emt 0:02:04]} 17. Nc3 {[%emt 0:01:07]} Nxc3 {[%emt 0:00:21]} 18. Bxc6 {[%emt 0:00:05]} Nxc6 {[%emt 0:00:04]} 19. Qxc3 {[%emt 0:00:01][%cal Oc5e6]} Ne7 {[%emt 0:00:06]} 20. Nd3 {[%emt 0:00:06]} c6 {[%emt 0:00:52]} 21. Qc5 {[%emt 0:00:19]} Qb7 {[%emt 0:00:55]} 22. Ra5 {[%emt 0:00:08]} h6 {[%emt 0:00:30]} 23. Qa3 {[%emt 0:00:12]} Nd5 {[%emt 0:00:37]} 24. Nc5 {[%emt 0:00:11][%cal Bd3c5,Bc5a6,Ba6b4][%mdl 32]} Qb6 {[%emt 0:00:19][%cal Oe6e5]} 25. Rxa6 {[%emt 0:00:06]} Rxa6 {[%emt 0:00:08]} 26. Qxa6 {[%emt 0:00:06]} Qxa6 {[%emt 0:01:01]} 27. Nxa6 $11 {[%emt 0:00:00][%mdl 4096] Endgame KRN-KRN} Rc8 {[%emt 0:00:01]} 28. Kg2 {[%emt 0:00:10]} Kf8 {[%emt 0:00:02]} 29. Kf3 {[%emt 0:00:12]} Ke7 {[%emt 0:00:48]} 30. e4 {[%emt 0:00:36]} Nb6 {[%emt 0:00:03]} 31. Nb4 {[%emt 0:01:52]} Kd6 {[%emt 0:00:03]} 32. e5+ {[%emt 0:00:18]} (32. Ke3 $14) 32... Kd7 {[%emt 0:00:05] The position is equal.} 33. Ke2 {[%emt 0:03:05]} Nd5 {[%emt 0:00:21]} 34. Nxd5 {[%emt 0:00:02]} cxd5 {[%emt 0:00:15]} 35. Rxc8 {[%emt 0:00:17]} Kxc8 {[%emt 0:00:01] KP-KP} 36. Kf3 {[%emt 0:00:28]} Kd7 {[%emt 0:00:13]} 37. Kg4 {[%emt 0:00:21] [#] Kh5 is the strong threat.} Ke7 {[%emt 0:01:07]} 38. Kh5 {[%emt 0:01:12] aiming for g4.} Kf8 $1 {[%emt 0:00:07]} 39. f4 {[%emt 0:01:24]} Kg8 {[%emt 0:00:23]} 40. Kg4 {[%emt 0:00:36]} b4 {[%emt 0:00:23]} 41. f5 {[%emt 0:00:18]} g6 {[%emt 0:00:13]} 42. f6 {[%emt 0:00:20]} Kf8 {[%emt 0:00:07]} 43. Kh4 {[%emt 0:00:02]} Kg8 {[%emt 0:00:05]} 44. g4 {[%emt 0:00:00]} Kf8 {[%emt 0:00:02]} 45. g5 {[%emt 0:00:01]} h5 {[%emt 0:00:01]} 46. Kg3 {[%emt 0:00:01]} Ke8 {[%emt 0:00:01]} 47. h4 $1 {[%emt 0:00:01]} Kd7 {[%emt 0:00:01]} 48. Kh2 {[%emt 0:00:01]} Kc6 {[%emt 0:00:00]} 49. Kh1 {[%emt 0:00:00]} Kc7 {[%emt 0:00:00]} 50. Kh2 {[%emt 0:00:01]} Kc6 {[%emt 0:00:01]} 51. Kh1 {[%emt 0:00:00]} Kc7 {[%emt 0:00:00]} 52. Kh2 {[%emt 0:00:00]} Kc6 {[%emt 0:00:00] Weighted Error Value: White=0.06 (flawless) /Black=0.04 (flawless)} 1/2-1/2

[Event "FTX Crypto Cup MCCT 2022"]
[Site "Miami"]
[Date "2022.08.11"]
[Round "6.4"]
[White "Aronian, Levon"]
[Black "Niemann, Hans Moke"]
[Result "1-0"]
[ECO "D02"]
[WhiteElo "2775"]
[BlackElo "2688"]
[Annotator "TA"]
[PlyCount "105"]
[EventDate "2022.08.10"]
[EventType "tourn"]
[EventCountry "USA"]
[SourceTitle "playchess.com"]
[Source "ChessBase"]
[SourceQuality "1"]
[TimeControl "900+10"]

{[%evp 11,105,2,13,4,17,11,86,79,89,41,50,49,56,34,46,35,33,41,43,23,33,26,37,31,36,35,36,47,93,77,97,62,42,41,63,65,93,73,79,62,68,67,258,245,339,332,329,334,303,289,365,344,367,322,333,328,378,366,400,377,389,355,385,356,416,389,1054,956,10560,7214,5471,5381,5065,4587,29970,29971,29971,29972,29972,29973,29972,29973,29974,29975,29975,29976,29976,29977,29978,29979,29979,29979,29979,29980,29980,29981]} 1. d4 {[%emt 0:00:00]} Nf6 {[%emt 0:00:00]} 2. Nf3 {[%emt 0:00:02]} d5 {[%emt 0:00:02]} 3. Bf4 {[%emt 0:00:02]} g6 {[%emt 0:00:01]} 4. e3 {[%emt 0:00:02]} Bg7 {[%emt 0:00:02]} 5. c3 {[%emt 0:00:01]} O-O {[%emt 0:00:02]} 6. Nbd2 {[%emt 0:00:02]} b6 {[%emt 0:00:01]} 7. Be2 {[%emt 0:00:02] 7.a4 is setting a new trend. D02: 1 d4 d5 2 Nf3 sidelines, including 2...Nf6 3 g3 and 2...Nf6 3 Bf4.} Bb7 {[%emt 0:00:02]} 8. h4 $5 {[%emt 0:00:01][%mdl 4] [#] An interesting side line.} h6 $146 {[%emt 0:00:43]} (8... Nbd7 $11 {keeps the balance.}) ({Predecessor:} 8... Nbd7 9. Ne5 Ne4 10. Nxe4 dxe4 11. h5 Nxe5 12. Bxe5 Bxe5 13. dxe5 Qd5 14. Qxd5 Bxd5 {1-0 (76) Forbes,C (2119)-Rice,C (2116) Hinckley Island 2009}) 9. Ne5 $16 {[%emt 0:00:11] White is better.} Nfd7 {[%emt 0:00:21]} 10. Ndf3 {[%emt 0:00:02] 0x0.001f2628c97fdp-1022s more active pieces.} (10. Ng4 $16 Kh7 11. Nf3 (11. h5 g5 $11)) 10... Nxe5 $14 {[%emt 0:00:07]} 11. Bxe5 {[%emt 0:00:00]} Nd7 {[%emt 0:00:16]} 12. Bxg7 {[%emt 0:00:10]} Kxg7 {[%emt 0:00:01]} 13. Qa4 {[%emt 0:00:05]} c5 {[%emt 0:00:36]} 14. h5 {[%emt 0:00:38]} g5 $1 {[%emt 0:00:07]} 15. Bb5 {[%emt 0:00:02]} Nf6 {[%emt 0:00:10]} 16. Ne5 {[%emt 0:00:02]} a6 {[%emt 0:00:20]} 17. Be2 {[%emt 0:00:02]} b5 {[%emt 0:00:12]} 18. Qc2 {[%emt 0:00:07]} cxd4 {[%emt 0:02:04]} 19. exd4 {[%emt 0:00:02]} Ne4 {[%emt 0:00:31]} (19... b4 $14) 20. f3 {[%emt 0:00:22][%cal Bf2f3,Bf3f4][%mdl 32]} Nd6 {[%emt 0:00:10]} 21. f4 {[%emt 0:00:11]} e6 {[%emt 0:00:31]} 22. O-O {[%emt 0:00:41]} f5 {[%emt 0:00:27]} 23. a4 {[%emt 0:00:02]} Nc4 {[%emt 0:03:06]} 24. axb5 {[%emt 0:00:02]} axb5 {[%emt 0:01:37]} 25. Rxa8 {[%emt 0:00:34]} Bxa8 {[%emt 0:01:03]} 26. Ra1 {[%emt 0:00:45]} gxf4 $2 {[%emt 0:00:46] Loses the game.} (26... Nxe5 $14 27. fxe5 Bc6) 27. Ng6 $18 {[%emt 0:01:23][%cal Be5g6,Bg6f8,Bf8e6,Be6d8,Bd8f7][%mdl 32]} Ne3 {[%emt 0:02:10] [#]} 28. Nxf8 $1 {[%emt 0:00:02] The board is on fire.} Nxc2 {[%emt 0:00:28]} 29. Nxe6+ {[%emt 0:00:02]} Kf6 {[%emt 0:00:02]} 30. Nxd8 {[%emt 0:00:00]} Nxa1 {[%emt 0:00:01]} 31. Bxb5 {[%emt 0:00:00][%mdl 4096] Endgame KBN-KBN} Nb3 {[%emt 0:00:31]} 32. Be8 {[%emt 0:00:23]} Nd2 {[%emt 0:00:46]} 33. Bg6 {[%emt 0:00:17]} Nc4 {[%emt 0:00:19]} 34. Nf7 {[%emt 0:00:10] Inhibits Nd6.} Nxb2 {[%emt 0:00:24]} 35. Nxh6 {[%emt 0:00:01]} Nd1 {[%emt 0:00:05] [#]} 36. Ng8+ $1 {[%emt 0:02:11]} Kg7 {[%emt 0:00:20]} 37. Ne7 {[%emt 0:00:01]} Nxc3 {[%emt 0:00:32]} 38. Kf2 {[%emt 0:00:02] Prevents Ne2.} Ne4+ $2 {[%emt 0:00:33]} (38... Nb5 39. Nxf5+ Kf6) 39. Kf3 {[%emt 0:00:04]} Kf6 {[%emt 0:00:03] [#]} 40. h6 $1 {[%emt 0:00:11][%cal Of3f4]} Ng5+ {[%emt 0:00:03]} 41. Kxf4 {[%emt 0:00:01][%cal Og6f5]} Ne6+ {[%emt 0:00:02]} 42. Kg3 {[%emt 0:00:11] Threatening mate with h7.} Nf8 {[%emt 0:02:13] [#]} 43. Bxf5 $1 {[%emt 0:00:11] White mates.} Kxe7 {[%emt 0:00:02] [#]} (43... Bc6 44. Nxc6) 44. h7 $1 {[%emt 0:00:01]} Nxh7 {[%emt 0:00:01]} 45. Bxh7 {[%emt 0:00:01] KB-KB} Kf6 {[%emt 0:00:04]} 46. Kf4 {[%emt 0:00:01]} Bc6 {[%emt 0:00:07]} 47. g4 {[%emt 0:00:02][%cal Bg2g4,Bg4g5][%mdl 32]} Ba4 {[%emt 0:00:10]} 48. g5+ {[%emt 0:00:07]} Kg7 {[%emt 0:00:03]} 49. Bf5 {[%emt 0:00:01]} Bc6 {[%emt 0:00:20]} 50. Ke5 {[%emt 0:00:01]} Bb7 {[%emt 0:00:07]} 51. Be6 {[%emt 0:00:00]} Kg6 {[%emt 0:00:03]} 52. Bxd5 {[%emt 0:00:01]} Ba6 {[%emt 0:00:37]} 53. Kf4 {[%emt 0:00:01] Weighted Error Value: White=0.06 (flawless) /Black=0.28 (precise)} 1-0